bitfinex/quotes_SOLUSD_20260114
["timestamp","ask_amount","ask_price","bid_price","bid_amount"]
[1768430395116,2.52167285,145.92,145.88,6.0194737]
[1768430395317,2.52167285,145.93,145.88,6.0194737]
[1768430395896,2.52167285,145.92,145.88,6.0194737]
[1768430396310,11.30060176,145.94,145.85,0.70416366]
[1768430396511,5.9565132,145.92,145.85,0.70416366]
[1768430396694,2.52167285,145.89,145.85,0.70416366]
[1768430396893,12.48,145.89,145.83,0.70416366]
[1768430397397,2.52167285,145.84,145.76,0.80416366]
[1768430397606,14.94167286,145.83,145.78,0.70416366]
[1768430398415,2.52167285,145.79,145.73,0.70416366]
[1768430398609,3.21879487,145.78,145.72,127.88520642]
[1768430398809,2.52167285,145.78,145.72,127.88520642]
[1768430399013,2.52167285,145.81,145.72,127.88520642]
[1768430399211,3.21879487,145.81,145.72,127.88520642]
[1768430399417,3.21879487,145.77,145.72,127.88520642]
[1768430399624,2.52167285,145.75,145.72,127.88520642]
[1768430399918,2.52167285,145.76,145.72,127.88520642]
[1768430400416,0.69712202,145.75,145.72,86.80164478]
[1768430400603,3.21879487,145.75,145.72,45.71808314]
[1768430400800,26.52587993,145.81,145.72,45.71808314]
[1768430400801,2.52167285,145.77,145.73,0.70416366]
[1768430401201,0.69712202,145.78,145.73,0.70416366]
[1768430401402,3.21879487,145.78,145.73,0.70416366]
[1768430401602,3.21879487,145.78,145.73,13.20416366]
[1768430402323,3.21879487,145.78,145.74,0.70416366]
[1768430402510,2.52167285,145.78,145.74,0.70416366]
[1768430402705,0.69712202,145.81,145.74,0.70416366]
[1768430402922,2.52167285,145.81,145.74,0.70416366]
[1768430403302,3.21879487,145.82,145.75,0.70416366]
[1768430403502,0.69712202,145.82,145.75,0.70416366]
[1768430403707,3.21879487,145.82,145.75,0.70416366]
[1768430403909,24.61114026,145.83,145.77,0.70416366]
[1768430404109,24.61114026,145.83,145.79,0.70416366]
[1768430406410,24.61114026,145.83,145.8,13.20416366]
[1768430406812,24.61114026,145.83,145.81,0.70416366]
[1768430407524,24.61114026,145.83,145.71,55.43149302]
[1768430407726,0.68436901,145.82,145.76,5.34408856]
[1768430407911,3.20604186,145.82,145.73,12.5]
[1768430408116,3.20604186,145.82,145.75,5.34408856]
[1768430408326,3.90330191,145.82,145.74,17.84408856]
[1768430408527,3.90330191,145.82,145.74,20.36576141]
[1768430409740,3.90330191,145.82,145.75,0.70416366]
[1768430410229,3.90330191,145.82,145.77,0.70416366]
[1768430410438,1.38162906,145.82,145.77,0.70416366]
[1768430410733,3.90330191,145.82,145.78,13.20416366]
[1768430411442,3.90330191,145.82,145.79,12.5]
[1768430411823,3.90330191,145.82,145.78,0.70416366]
[1768430412033,3.90330191,145.82,145.79,12.5]
[1768430412840,1.38162906,145.82,145.8,12.5]
[1768430413017,2.52167285,145.81,145.8,12.5]
[1768430413219,2.52167285,145.81,145.79,12.5]
[1768430413426,1.38162906,145.82,145.79,12.5]
[1768430413626,2.52167285,145.81,145.78,13.20416366]
[1768430414743,2.52167285,145.81,145.78,0.70416366]
[1768430414935,2.52167285,145.81,145.78,13.20416366]
[1768430415835,0.68436901,145.8,145.78,12.5]
[1768430416339,3.20604186,145.8,145.78,12.5]
[1768430418149,0.68436901,145.8,145.78,12.5]
[1768430418318,0.70389029,145.78,145.72,45.71808314]
[1768430418635,0.70382532,145.75,145.73,12.5]
[1768430418840,0.70382532,145.75,145.72,45.71808314]
[1768430418841,0.70376163,145.73,145.72,45.71808314]
[1768430419033,0.70376163,145.73,145.63,0.1]
[1768430419034,0.69059595,145.73,145.68,0.70416366]
[1768430419234,3.2122688,145.73,145.68,13.20416366]
[1768430419535,0.69059595,145.73,145.69,13.20416366]
[1768430420243,2.52167285,145.75,145.69,13.20416366]
[1768430420244,0.71075565,145.75,145.7,0.70416366]
[1768430420739,0.69292616,145.77,145.7,0.70416366]
[1768430421634,0.69292616,145.77,145.71,0.6864664]
[1768430423437,3.1965753,145.76,145.71,0.6864664]
[1768430425747,3.1965753,145.76,145.72,13.1864664]
[1768430426147,3.1965753,145.77,145.73,0.6864664]
[1768430428550,3.1965753,145.77,145.73,13.1864664]
[1768430430563,1.35927146,145.76,145.73,13.1864664]
[1768430430728,3.1965753,145.75,145.73,12.5]
[1768430432054,0.67490245,145.75,145.73,12.5]
[1768430432259,0.67490245,145.75,145.7,0.6864664]
[1768430432561,0.67490245,145.74,145.7,0.6864664]
[1768430432851,0.67490245,145.73,145.69,13.1864664]
[1768430434153,0.67490245,145.72,145.69,12.5]
[1768430434339,0.67490245,145.72,145.69,0.6864664]
[1768430434536,0.67490245,145.72,145.69,12.5]
[1768430435336,0.67490245,145.72,145.69,13.1864664]
[1768430436054,0.67490245,145.72,145.69,0.6864664]
[1768430436256,0.67490245,145.72,145.68,0.6864664]
[1768430437334,0.67490245,145.72,145.67,3.20813925]
[1768430437755,0.67490245,145.71,145.67,3.20813925]
[1768430438629,0.67490245,145.71,145.66,3.20813925]
[1768430439435,0.67490245,145.7,145.65,0.6864664]
[1768430439657,0.67490245,145.7,145.65,3.20813925]
[1768430440364,0.67490245,145.69,145.64,3.20813925]
[1768430441169,0.67490245,145.69,145.64,0.6864664]
[1768430441332,0.67490245,145.69,145.64,3.20813925]
[1768430443036,0.67490245,145.69,145.65,0.6864664]
[1768430447352,0.68436901,145.68,145.65,0.6864664]
[1768430448548,0.67490245,145.73,145.68,0.6864664]
[1768430448754,0.67490245,145.72,145.68,0.6864664]
[1768430449143,0.67490245,145.72,145.67,0.6864664]
[1768430449356,0.67490245,145.72,145.67,3.20813925]
[1768430450258,0.67490245,145.72,145.64,0.6864664]
[1768430450259,0.67490245,145.7,145.64,0.6864664]
[1768430450444,6.86250314,145.72,145.65,0.6607244]
[1768430450445,0.70071039,145.69,145.65,0.6607244]
[1768430451556,0.70071039,145.68,145.63,0.1]
[1768430451764,0.70071039,145.68,145.63,0.7607244]
[1768430452364,0.70071039,145.67,145.63,0.1]
[1768430456470,0.70071039,145.67,145.63,4.05375598]
[1768430456972,0.70071039,145.67,145.63,0.1]
[1768430462569,0.70071039,145.67,145.63,0.7607244]
[1768430462773,0.70071039,145.67,145.63,0.1]
[1768430465455,0.70071039,145.67,145.63,0.7607244]
[1768430465965,0.70071039,145.67,145.63,0.1]
[1768430466159,0.70071039,145.67,145.63,0.7607244]
[1768430467259,18.4765132,145.72,145.63,0.7607244]
[1768430467260,0.70071039,145.68,145.63,0.7607244]
[1768430467460,0.70071039,145.68,145.64,0.6607244]
[1768430468777,0.70071039,145.67,145.63,0.7607244]
[1768430468980,0.70071039,145.68,145.63,0.7607244]
[1768430469365,0.70071039,145.68,145.63,0.1]
[1768430469578,0.70071039,145.68,145.63,0.7607244]
[1768430470079,0.70071039,145.67,145.63,0.7607244]
[1768430471767,0.70071039,145.67,145.65,3.95375598]
[1768430472393,1e-08,145.67,145.65,3.95375598]
[1768430472880,12.81931959,145.72,145.66,3.95375598]
[1768430474671,12.81931959,145.72,145.63,0.7607244]
[1768430474870,0.70071039,145.71,145.67,3.95375598]
[1768430475273,0.70071039,145.71,145.64,0.6607244]
[1768430475477,0.70071039,145.71,145.67,3.95375598]
[1768430476461,0.70071039,145.71,145.66,3.95375598]
[1768430476462,0.69479788,145.69,145.66,3.95375598]
[1768430477968,0.69479788,145.69,145.64,0.6607244]
[1768430478182,0.69479788,145.69,145.66,3.95375598]
[1768430482192,0.69479788,145.69,145.67,3.95375598]
[1768430482396,0.69479788,145.69,145.67,3.92375598]
[1768430482691,0.69479788,145.69,145.67,3.89375598]
[1768430483289,0.69479788,145.69,145.65,3.95375598]
[1768430483592,0.69479788,145.69,145.65,4.61014728]
[1768430483763,0.69479788,145.69,145.65,3.95375598]
[1768430484904,0.69479788,145.69,145.64,3.95375598]
[1768430485263,0.69479788,145.69,145.64,4.61014728]
[1768430487284,6.86415012,145.69,145.64,4.61014728]
[1768430487590,0.11531288,145.68,145.64,4.61014728]
[1768430489295,0.66342886,145.76,145.67,0.6563913]
[1768430489500,0.14636821,145.75,145.71,4.61014728]
[1768430489685,0.14636821,145.75,145.71,4.58014728]
[1768430489884,0.14636821,145.75,145.67,12.52]
[1768430489885,0.66342886,145.77,145.73,3.95375598]
[1768430490087,0.66342886,145.77,145.74,3.95375598]
[1768430490289,0.66342886,145.77,145.75,3.95375598]
[1768430490801,0.66342886,145.77,145.74,3.95375598]
[1768430491498,5.9565132,145.81,145.74,3.95375598]
[1768430491812,0.65855525,145.8,145.76,3.95375598]
[1768430492487,0.65855525,145.8,145.77,3.95375598]
[1768430493079,0.65855525,145.8,145.74,3.95375598]
[1768430493787,0.65855525,145.8,145.75,3.95375598]
[1768430493998,4.61231123,145.8,145.73,16.47375598]
[1768430494303,0.65855525,145.8,145.75,0.6563913]
[1768430494803,0.66342886,145.79,145.75,0.6563913]
[1768430495583,0.66342886,145.79,145.73,0.6563913]
[1768430495790,0.66342886,145.78,145.73,0.6563913]
[1768430496399,0.66342886,145.8,145.73,0.6563913]
[1768430496575,4.61718484,145.79,145.73,0.6563913]
[1768430498504,0.66342886,145.78,145.73,0.6563913]
[1768430498707,0.66342886,145.76,145.69,15.81237479]
[1768430498998,6.85956155,145.79,145.7,0.6563913]
[1768430498999,4.61718484,145.75,145.7,0.6563913]
[1768430499695,0.66342886,145.75,145.7,0.6563913]
[1768430500005,4.61718484,145.75,145.7,0.6563913]
[1768430500186,0.66342886,145.75,145.7,4.61014728]
[1768430501381,0.66342886,145.75,145.7,0.6563913]
[1768430501609,0.66342886,145.75,145.7,4.61014728]
[1768430504885,0.66342886,145.78,145.73,0.6563913]
[1768430508014,0.66342886,145.77,145.73,0.6563913]
[1768430511708,0.66342886,145.77,145.71,3.25238016]
[1768430511917,0.66342886,145.77,145.72,0.72458373]
[1768430513994,0.69172114,145.77,145.72,0.72458373]
[1768430514705,0.69172114,145.76,145.72,0.72458373]
[1768430516907,0.69172114,145.76,145.71,0.72458373]
[1768430517411,0.69172114,145.76,145.72,0.72458373]
[1768430519409,0.69172114,145.77,145.73,0.72458373]
[1768430519614,7.5516493,145.78,145.73,0.72458373]
[1768430519815,0.69172114,145.77,145.73,0.72458373]
[1768430520209,7.5516493,145.78,145.74,0.72458373]
[1768430520517,0.69172114,145.79,145.75,0.72458373]
[1768430521102,0.69172114,145.79,145.76,0.72458373]
[1768430521512,0.69172114,145.81,145.76,0.72458373]
[1768430524304,0.69172114,145.8,145.76,0.72458373]
[1768430528424,0.69172114,145.8,145.76,3.25238016]
[1768430528728,0.69172114,145.81,145.77,0.72458373]
[1768430529823,0.69172114,145.82,145.77,3.25238016]
[1768430530914,0.69172114,145.82,145.78,0.72458373]
[1768430533038,0.69172114,145.82,145.78,3.25238016]
[1768430533209,0.89172114,145.83,145.79,0.72458373]
[1768430533918,0.69172114,145.82,145.79,0.72458373]
[1768430534319,0.69172114,145.82,145.78,0.72458373]
[1768430534519,0.69172114,145.82,145.79,0.72458373]
[1768430544854,0.69172114,145.82,145.79,3.25238016]
[1768430545342,0.69172114,145.82,145.79,0.72458373]
[1768430546745,0.90847052,145.83,145.79,0.72458373]
[1768430547333,0.70847052,145.82,145.79,0.72458373]
[1768430549340,0.2,145.83,145.82,0.71721998]
[1768430550056,0.2,145.83,145.81,0.71721998]
[1768430551228,0.17,145.83,145.81,0.71721998]
[1768430552727,0.17,145.83,145.82,0.71721998]
[1768430552927,0.2,145.84,145.82,0.71721998]
[1768430553149,0.2,145.84,145.83,0.63162278]
[1768430553953,0.2,145.84,145.82,3.15941921]
[1768430554166,0.17,145.84,145.83,0.63162278]
[1768430554727,0.70847052,145.86,145.83,3.15941921]
[1768430555047,0.70847052,145.88,145.84,0.63162278]
[1768430555355,0.70847052,145.88,145.84,3.15941921]
[1768430555860,0.70847052,145.88,145.84,2.52779643]
[1768430556450,0.70847052,145.88,145.83,3.15941921]
[1768430556648,0.70847052,145.88,145.82,3.15941921]
[1768430556850,0.70847052,145.88,145.83,3.15941921]
[1768430557458,0.70847052,145.88,145.83,2.52779643]
[1768430557654,0.70847052,145.88,145.83,3.15941921]
[1768430558156,0.70847052,145.88,145.83,2.52779643]
[1768430558355,0.70847052,145.88,145.83,3.15941921]
[1768430558558,0.70847052,145.88,145.83,2.52779643]
[1768430558753,0.70847052,145.88,145.83,3.15941921]
[1768430560534,0.70847052,145.87,145.81,15.65941921]
[1768430561034,0.70847052,145.87,145.82,0.63162278]
[1768430561230,0.70847052,145.87,145.82,3.15941921]
[1768430566643,0.70847052,145.87,145.82,0.63162278]
[1768430568155,0.70847052,145.87,145.84,3.15941921]
[1768430568350,0.70847052,145.87,145.84,0.63162278]
[1768430568547,0.70847052,145.87,145.83,3.15941921]
[1768430570061,0.70847052,145.87,145.84,0.63162278]
[1768430570651,0.70847052,145.87,145.83,3.15941921]
[1768430571366,0.70847052,145.87,145.83,0.63162278]
[1768430578368,0.67847053,145.87,145.83,0.63162278]
[1768430580370,0.67847053,145.87,145.82,0.65268912]
[1768430584755,0.67847053,145.87,145.83,0.65268912]
[1768430585262,0.69397028,145.89,145.83,0.65268912]
[1768430587982,0.69397028,145.9,145.84,0.65268912]
[1768430589969,0.69397028,145.9,145.85,0.65268912]
[1768430594273,0.69397028,145.9,145.85,4.59640619]
[1768430595481,0.69397028,145.9,145.85,0.65268912]
[1768430595778,0.69397028,145.9,145.86,0.65268912]
[1768430597765,0.69397028,145.9,145.85,0.65268912]
[1768430599674,0.69397028,145.91,145.85,0.65268912]
[1768430600061,0.69397028,145.91,145.86,4.59640619]
[1768430600262,0.69397028,145.91,145.86,0.62268913]
[1768430600462,0.69397028,145.91,145.86,4.5064062]
[1768430600673,0.69397028,145.91,145.86,4.4764062]
[1768430600984,0.69397028,145.91,145.86,0.53268913]
[1768430601684,0.69397028,145.91,145.86,4.4764062]
[1768430602186,0.69397028,145.91,145.84,6.85682803]
[1768430602503,0.69397028,145.91,145.83,6.85714616]
[1768430602664,0.69397028,145.91,145.88,0.54162278]
[1768430603084,0.69397028,145.91,145.86,0.54162278]
[1768430603256,0.69397028,145.91,145.86,4.48533985]
[1768430604189,0.69397028,145.91,145.85,0.54162278]
[1768430605587,0.67034509,145.9,145.85,0.54162278]
[1768430605775,0.67034509,145.89,145.85,0.54162278]
[1768430605969,0.67034509,145.89,145.84,3.94371707]
[1768430608070,0.67034509,145.89,145.83,0.54162278]
[1768430609892,7.52482463,145.89,145.83,0.54162278]
[1768430610195,0.67034509,145.88,145.83,0.54162278]
[1768430618690,0.67034509,145.88,145.82,4.48533985]
[1768430619595,0.67034509,145.88,145.82,0.54162278]
[1768430619786,0.67034509,145.88,145.82,4.48533985]
[1768430620880,0.67034509,145.88,145.83,0.54162278]
[1768430622792,5.52482463,145.89,145.83,0.54162278]
[1768430623883,6.85400959,145.9,145.84,0.67364039]
[1768430624593,10.79772666,145.9,145.84,0.67364039]
[1768430624792,0.67034509,145.89,145.84,0.67364039]
[1768430627203,0.67034509,145.89,145.85,0.67364039]
[1768430630798,0.70983413,145.89,145.84,0.69152284]
[1768430631600,0.70983413,145.88,145.84,0.69152284]
[1768430631805,0.67983414,145.88,145.85,0.69152284]
[1768430632307,0.64983415,145.88,145.85,0.69152284]
[1768430635186,0.64983415,145.88,145.84,0.69152284]
[1768430637282,0.70983413,145.88,145.86,0.69152284]
[1768430638380,0.70983413,145.89,145.86,0.69152284]
[1768430641419,0.70983413,145.91,145.88,0.69152284]
[1768430641887,0.70983413,145.91,145.87,3.21509782]
[1768430642082,0.70983413,145.91,145.87,0.69152284]
[1768430642288,0.70983413,145.91,145.86,0.69152284]
[1768430642594,0.70983413,145.91,145.87,3.21509782]
[1768430643209,0.70983413,145.9,145.87,0.69152284]
[1768430643792,0.70983413,145.91,145.87,0.69152284]
[1768430644188,0.70983413,145.92,145.87,0.69152284]
[1768430644484,0.70983413,145.92,145.88,3.21509782]
[1768430644688,12.7,145.94,145.89,0.69152284]
[1768430644689,7.76213493,145.94,145.89,0.69152284]
[1768430645024,0.70983413,145.93,145.89,0.69152284]
[1768430648703,0.70983413,145.93,145.89,3.21509782]
[1768430648911,0.70983413,145.93,145.9,0.69152284]
[1768430656404,0.2,145.94,145.9,0.69152284]
[1768430656925,0.90983413,145.94,145.9,0.69152284]
[1768430657096,0.70983413,145.93,145.9,0.69152284]
[1768430658527,0.90983413,145.94,145.9,0.69152284]
[1768430660231,0.70983413,145.93,145.9,0.69152284]
[1768430660642,0.89263693,145.94,145.9,0.69152284]
[1768430661323,0.89263693,145.94,145.86,12.5]
[1768430661324,0.2,145.94,145.92,0.67955523]
[1768430661528,0.2,145.94,145.92,3.20313021]
[1768430661703,0.2,145.94,145.93,0.67955523]
[1768430662105,0.88032881,145.96,145.93,3.20313021]
[1768430662504,0.88032881,145.96,145.94,0.67955523]
[1768430662704,0.2,145.96,145.94,0.67955523]
[1768430664111,0.88032881,145.96,145.93,3.20313021]
[1768430667617,0.88032881,145.96,145.93,0.67955523]
[1768430667817,0.88032881,145.96,145.93,3.20313021]
[1768430668031,0.88032881,145.96,145.93,0.67955523]
[1768430668440,0.88032881,145.96,145.94,0.67955523]
[1768430668441,0.2,145.96,145.94,0.67955523]
[1768430668738,0.88032881,145.96,145.93,3.20313021]
[1768430670714,0.2,145.96,145.94,0.67955523]
[1768430672539,0.2,145.98,145.94,2.52357498]
[1768430672723,0.88032881,145.98,145.95,0.67955523]
[1768430674125,7.73058984,145.98,145.95,0.67955523]
[1768430674541,0.68032881,145.97,145.92,0.67955523]
[1768430674844,0.68032881,145.95,145.9,2.52357498]
[1768430676332,0.68032881,145.95,145.89,0.67955523]
[1768430676743,0.68032881,145.94,145.89,0.67955523]
[1768430679252,0.68032881,145.93,145.87,3.20313021]
[1768430679822,0.68032881,145.93,145.87,0.67955523]
[1768430680022,2.52357498,145.92,145.87,0.67955523]
[1768430680242,0.68032881,145.91,145.87,0.67955523]
[1768430684352,0.68032881,145.9,145.86,0.67955523]
[1768430684535,0.68032881,145.9,145.85,0.67955523]
[1768430685346,0.68032881,145.89,145.85,0.67955523]
[1768430687059,0.68032881,145.89,145.84,0.67955523]
[1768430687544,0.68032881,145.88,145.84,0.67955523]
[1768430690464,0.67693842,145.86,145.8,0.68094875]
[1768430690666,0.67693842,145.84,145.8,0.68094875]
[1768430698452,0.67693842,145.83,145.79,0.68094875]
[1768430701365,0.67693842,145.82,145.76,0.68094875]
[1768430701570,0.67693842,145.82,145.78,0.68094875]
[1768430705250,0.67693842,145.83,145.79,0.68094875]
[1768430705456,0.67693842,145.83,145.79,4.62671081]
[1768430706157,0.67693842,145.83,145.8,0.68094875]
[1768430707958,0.67693842,145.84,145.81,0.68094875]
[1768430709475,13.17693842,145.85,145.81,0.68094875]
[1768430709679,0.67693842,145.85,145.82,0.68094875]
[1768430711254,10.80088325,145.88,145.82,0.68094875]
[1768430711255,11.47782167,145.88,145.82,0.68094875]
[1768430711479,0.67693842,145.88,145.83,0.68094875]
[1768430714992,0.67693842,145.89,145.83,0.68094875]
[1768430716089,0.67693842,145.87,145.81,0.68094875]
[1768430716282,0.67693842,145.87,145.82,0.68094875]
[1768430718279,0.67693842,145.86,145.81,4.62671081]
[1768430718472,0.67693842,145.86,145.81,0.68094875]
[1768430725495,0.67340771,145.85,145.81,0.68094875]
[1768430725690,0.67340771,145.85,145.8,0.71823745]
[1768430728396,0.67340771,145.84,145.8,0.71823745]
[1768430731674,0.67340771,145.84,145.79,0.71823745]
[1768430743404,0.67340771,145.84,145.78,4.66399951]
[1768430743608,0.67340771,145.83,145.78,4.66399951]
[1768430744415,0.67340771,145.83,145.79,0.71823745]
[1768430748914,0.67340771,145.83,145.78,0.71823745]
[1768430749090,0.67340771,145.82,145.78,0.71823745]
[1768430752388,3.94576206,145.85,145.8,0.7135096]
[1768430752389,0.70662886,145.83,145.8,0.7135096]
[1768430752595,0.70662886,145.84,145.81,4.65927166]
[1768430755416,0.70662886,145.84,145.81,3.23777094]
[1768430756222,0.70662886,145.85,145.82,0.7135096]
[1768430758021,13.20662886,145.87,145.82,0.7135096]
[1768430758922,0.70662886,145.87,145.82,0.7135096]
[1768430759104,0.70662886,145.87,145.84,0.7135096]
[1768430761406,13.20662886,145.9,145.84,0.7135096]
[1768430761920,0.70662886,145.89,145.85,0.7135096]
[1768430762827,0.70662886,145.89,145.81,6.85803368]
[1768430762828,0.10402552,145.84,145.78,0.7135096]
[1768430763509,5.9565132,145.88,145.79,18.9307042]
[1768430763710,0.70662886,145.93,145.84,2.52426134]
[1768430763929,0.70662886,145.92,145.84,2.52426134]
[1768430765213,0.70662886,145.91,145.84,9.38083508]
[1768430765417,0.70662886,145.91,145.86,2.52426134]
[1768430766425,0.70662886,145.91,145.87,2.52426134]
[1768430768407,13.20662886,145.91,145.87,2.52426134]
[1768430770346,0.70662886,145.9,145.87,2.52426134]
[1768430771414,13.20662886,145.9,145.88,2.52426134]
[1768430771620,13.20662886,145.91,145.87,2.52426134]
[1768430773260,0.70662886,145.91,145.87,2.52426134]
[1768430773548,12.5,145.9,145.87,2.52426134]
[1768430774129,13.20662886,145.9,145.87,2.52426134]
[1768430775124,0.70662886,145.9,145.87,2.52426134]
[1768430775324,12.5,145.9,145.87,2.52426134]
[1768430775536,12.5,145.9,145.88,2.52426134]
[1768430776133,12.5,145.9,145.87,2.52426134]
[1768430778940,0.70662886,145.93,145.87,2.52426134]
[1768430779132,13.20662886,145.92,145.88,2.52426134]
[1768430779846,12.84662886,145.93,145.89,0.36]
[1768430780036,0.34662886,145.93,145.89,0.36]
[1768430780236,12.84662886,145.93,145.89,0.36]
[1768430780924,12.5,145.93,145.89,0.36]
[1768430781545,5.9565132,145.96,145.89,2.88426134]
[1768430781546,12.5,145.92,145.89,2.88426134]
[1768430782346,12.5,145.92,145.89,0.36]
[1768430783134,13.21758745,145.92,145.89,0.36]
[1768430783747,13.21758745,145.92,145.89,2.88426134]
[1768430784848,0.71758745,145.92,145.89,2.88426134]
[1768430785154,13.21758745,145.92,145.89,0.36]
[1768430786725,12.5,145.92,145.9,0.36]
[1768430786943,13.21758745,145.92,145.89,0.36]
[1768430787129,0.71758745,145.93,145.89,9.73868982]
[1768430787329,13.21758745,145.93,145.9,0.36]
[1768430787849,13.21758745,145.93,145.89,2.88426134]
[1768430788647,0.71758745,145.93,145.89,2.88426134]
[1768430788833,12.106,145.93,145.9,0.36]
[1768430789547,13.21758745,145.94,145.9,2.88426134]
[1768430789842,13.21758745,145.94,145.91,0.36]
[1768430790431,13.21758745,145.94,145.9,2.88426134]
[1768430791551,13.21758745,145.94,145.9,0.36]
[1768430791749,13.21758745,145.94,145.9,2.88426134]
[1768430792246,0.71758745,145.96,145.92,0.36]
[1768430792453,13.21758745,145.95,145.91,2.88426134]
[1768430792952,0.71758745,145.94,145.91,2.88426134]
[1768430793930,12.5,145.96,145.93,0.36]
[1768430794332,13.21758745,145.96,145.93,0.36]
[1768430794949,13.21758745,145.96,145.92,0.36]
[1768430795160,13.21758745,145.96,145.92,2.88426134]
[1768430795757,13.21758745,145.96,145.92,0.36]
[1768430796753,12.5,145.96,145.93,0.36]
[1768430796933,13.19758745,145.97,145.93,2.88426134]
[1768430797138,0.71758745,145.97,145.94,0.36]
[1768430797549,0.2,145.98,145.95,2.88426134]
[1768430797734,0.2,145.98,145.96,0.36]
[1768430798229,0.2,145.98,145.95,2.88426134]
[1768430799737,0.91758745,145.98,145.95,2.88426134]
[1768430802056,0.91758745,145.98,145.95,0.36]
[1768430802949,0.2,145.98,145.95,0.36]
[1768430804658,0.91758745,145.98,145.95,0.36]
[1768430805658,12.48,146.0,145.97,0.36]
[1768430805659,0.71758745,146.0,145.97,0.36]
[1768430805832,13.19758745,146.0,145.96,0.16]
[1768430806037,0.71758745,146.0,145.96,0.16]
[1768430806456,13.19758745,146.0,145.96,0.16]
[1768430807544,0.71758745,146.0,145.96,0.16]
[1768430807739,13.19758745,146.0,145.96,0.16]
[1768430808450,13.19758745,146.0,145.96,2.68426134]
[1768430808644,13.19758745,146.0,145.96,0.16]
[1768430808845,13.19758745,146.0,145.96,2.68426134]
[1768430809267,0.71758745,146.0,145.96,2.68426134]
[1768430809450,13.19758745,146.0,145.96,2.68426134]
[1768430809650,12.48,146.0,145.97,0.16]
[1768430811870,0.71758745,146.01,145.97,0.16]
[1768430812160,0.69452514,145.99,145.94,2.68426134]
[1768430812366,0.69452514,145.99,145.94,0.16]
[1768430812563,0.69452514,145.99,145.94,2.68426134]
[1768430812774,0.69452514,145.99,145.93,0.16]
[1768430812971,0.69452514,145.99,145.95,0.16]
[1768430814351,0.69452514,145.99,145.95,2.68426134]
[1768430814748,0.69452514,146.01,145.96,2.68426134]
[1768430814970,0.69452514,146.01,145.97,2.52426134]
[1768430815355,0.69452514,146.01,145.97,2.68426134]
[1768430816549,0.69452514,146.01,145.97,9.5349404]
[1768430817077,0.69452514,146.01,145.97,2.68426134]
[1768430817379,0.69452514,146.01,145.97,4.09577676]
[1768430817873,0.2,146.03,146.0,4.09577676]
[1768430819151,0.2,146.03,146.02,3.93577676]
[1768430819559,0.69452514,146.04,146.02,3.93577676]
[1768430822674,0.69452514,146.04,146.01,4.09577676]
[1768430823384,0.2,146.05,146.03,3.93577676]
[1768430823553,0.2,146.05,146.01,0.16]
[1768430823554,0.89452514,146.05,146.02,3.93577676]
[1768430823751,0.89452514,146.05,146.01,4.09577676]
[1768430824178,0.89452514,146.05,146.02,3.93577676]
[1768430824473,0.69452514,146.04,146.0,0.16]
[1768430824657,0.69452514,146.04,146.0,4.09577676]
[1768430825861,0.69452514,146.04,145.96,3.93577676]
[1768430825862,0.69452514,146.02,145.96,3.93577676]
[1768430828066,0.69452514,146.02,145.99,3.93577676]
[1768430828256,0.63452515,146.02,145.97,3.93577676]
[1768430832963,0.69452514,146.01,145.97,3.93577676]
[1768430834165,0.63452515,146.01,145.97,3.93577676]
[1768430834367,0.57452516,146.01,145.96,3.93577676]
[1768430834765,0.57452516,146.01,145.97,3.93577676]
[1768430837487,0.57452516,146.01,145.98,3.93577676]
[1768430838195,0.57452516,146.01,145.97,3.93577676]
[1768430839882,0.57452516,146.01,145.98,3.93577676]
[1768430840195,0.57452516,146.01,145.98,4.27577673]
[1768430841190,0.57452516,146.01,145.98,3.93577676]
[1768430843693,0.57452516,146.01,145.98,4.27577673]
[1768430843990,0.57452516,146.01,145.98,3.93577676]
[1768430844693,0.57452516,146.01,145.97,4.27577673]
[1768430845075,0.57452516,146.01,145.96,7.19106064]
[1768430845290,0.57452516,146.01,145.98,0.33999997]
[1768430845473,0.57452516,146.01,145.97,4.27577673]
[1768430847070,0.57452516,146.01,145.98,4.27577673]
[1768430849569,18.4365132,146.03,145.98,4.27577673]
[1768430849770,0.71087196,146.02,145.98,4.27577673]
[1768430850677,19.14738516,146.03,146.0,0.33999997]
[1768430850980,0.71087196,146.02,145.99,3.93577676]
[1768430852295,0.71087196,146.02,145.99,0.33999997]
[1768430852592,0.71087196,146.02,145.98,4.27577673]
[1768430852782,0.71087196,146.02,145.99,3.93577676]
[1768430854283,19.14738516,146.03,145.99,4.27577673]
[1768430854791,0.71087196,146.02,145.99,4.27577673]
[1768430855502,19.14738516,146.03,145.99,4.27577673]
[1768430855707,0.71087196,146.02,145.99,4.27577673]
[1768430856098,0.65087196,146.02,145.99,3.93577676]
[1768430856303,0.65087196,146.02,145.98,3.93577676]
[1768430857984,0.65087196,146.02,145.98,4.33577673]
[1768430858291,0.65087196,146.02,145.97,0.39999997]